bitfinex/quotes_ETHUSD_20250430
["timestamp","ask_amount","ask_price","bid_price","bid_amount"]
[1746043189728,11.17223501,1790.2,1790.0,4.9]
[1746043189932,5.58628009,1790.1,1790.0,4.9]
[1746043190182,5.58720266,1789.9,1789.7,5.698]
[1746043190672,5.5867043,1790.0,1789.7,5.698]
[1746043191032,5.58721644,1789.8,1789.7,5.698]
[1746043191233,5.58721644,1789.8,1789.7,4.9]
[1746043191557,5.58784085,1789.6,1789.5,0.40975639]
[1746043191762,12.76729254,1789.6,1789.5,0.40975639]
[1746043191935,15.75241019,1789.6,1789.5,0.40975639]
[1746043192801,6.70539121,1789.6,1789.5,0.40975639]
[1746043193078,5.58775711,1789.7,1789.5,0.40975639]
[1746043193289,5.58722704,1789.8,1789.5,0.40975639]
[1746043193648,5.58691864,1789.9,1789.5,5.99769081]
[1746043193848,5.58691864,1789.9,1789.6,0.7651]
[1746043194045,5.58751203,1789.8,1789.6,0.7651]
[1746043194248,5.58751203,1789.8,1789.5,0.40975639]
[1746043194249,5.58738525,1789.8,1789.5,0.40975639]
[1746043194872,6.70443273,1789.9,1789.5,0.40975639]
[1746043195072,5.58722519,1789.8,1789.5,0.40975639]
[1746043195280,6.70444389,1789.9,1789.5,5.99789598]
[1746043195491,6.09,1790.2,1789.7,0.7651]
[1746043195654,11.67621088,1790.2,1789.8,10.48806149]
[1746043195857,11.67609006,1790.2,1789.8,10.48803795]
[1746043196177,5.58721644,1789.8,1789.7,0.7651]
[1746043196487,5.58690429,1789.9,1789.7,0.7651]
[1746043196795,6.71934044,1789.9,1789.6,0.0082]
[1746043196952,6.70445809,1789.9,1789.6,0.0082]
[1746043197294,6.38655248,1790.0,1789.6,0.0082]
[1746043197475,0.7998,1790.0,1789.6,5.59594169]
[1746043197791,5.58646265,1790.1,1789.6,0.0082]
[1746043197992,5.58646265,1790.1,1789.7,5.58750947]
[1746043198170,5.58660978,1790.0,1789.6,0.0082]
[1746043198370,5.58711679,1789.9,1789.6,0.0082]
[1746043198572,5.58716817,1789.9,1789.6,0.0082]
[1746043198968,11.67734605,1789.8,1789.6,0.0082]
[1746043199296,21.53252996,1789.7,1789.6,0.0082]
[1746043199596,16.52608578,1790.1,1789.6,0.0082]
[1746043199597,6.09,1790.0,1789.6,0.0082]
[1746043199757,5.58734605,1789.8,1789.6,0.0082]
[1746043199956,5.58752863,1789.7,1789.6,0.0082]
[1746043200273,6.09,1790.0,1789.9,5.58690429]
[1746043200463,6.09,1790.0,1789.9,5.6659]
[1746043200666,11.67659217,1790.0,1789.9,4.901]
[1746043201694,11.67659217,1790.0,1789.6,6.36083123]
[1746043201894,11.67659217,1790.0,1789.7,0.05586896]
[1746043201895,0.7999,1789.9,1789.7,0.05586896]
[1746043202100,6.09,1790.0,1789.8,5.58709584]
[1746043202267,5.58640208,1790.1,1789.8,4.901]
[1746043202471,5.58672542,1790.0,1789.7,0.7783]
[1746043202670,5.58700607,1789.9,1789.7,0.7783]
[1746043202991,6.09,1790.0,1789.7,0.7783]
[1746043203165,11.67674493,1790.0,1789.7,0.7783]
[1746043203366,5.58702688,1789.9,1789.7,0.7783]
[1746043203561,5.58752863,1789.7,1789.6,0.0082]
[1746043203881,12.45372863,1789.7,1789.6,0.0082]
[1746043204056,15.45372863,1789.7,1789.6,0.0082]
[1746043204602,5.59065242,1788.7,1788.5,5.18377392]
[1746043204898,5.59221563,1788.2,1787.7,9.43509717]
[1746043205105,5.27056452,1787.8,1787.7,8.62109717]
[1746043205274,3.0,1788.3,1787.8,0.8144]
[1746043205604,0.01488235,1788.2,1788.1,5.59252838]
[1746043205806,6.04701898,1788.5,1787.8,0.8144]
[1746043206027,3.8005,1788.8,1787.9,0.05591815]
[1746043206162,5.59151217,1788.5,1787.9,5.59315397]
[1746043206363,0.01488235,1788.5,1787.8,0.8144]
[1746043206594,5.59146726,1788.5,1788.0,5.59274846]
[1746043206791,3.8005,1788.8,1788.2,5.59221563]
[1746043207017,5.59020264,1788.9,1788.4,5.59137093]
[1746043207182,11.18052733,1788.9,1788.4,5.59136836]
[1746043207504,8.59030374,1788.9,1788.4,5.59136836]
[1746043207680,5.58924045,1789.2,1788.7,5.59050468]
[1746043207881,5.58924045,1789.2,1788.8,4.902]
[1746043208205,5.58893082,1789.3,1788.9,5.58993438]
[1746043208206,5.58890229,1789.3,1788.9,5.58993438]
[1746043208361,5.58865739,1789.4,1789.0,0.7647]
[1746043208562,13.94007853,1789.8,1789.1,5.58919096]
[1746043208806,7.13160736,1789.8,1789.5,5.58801796]
[1746043208967,7.13160736,1789.8,1789.6,5.115]
[1746043209305,7.13160736,1789.8,1789.6,10.70283203]
[1746043209604,7.13160736,1789.8,1789.7,5.58752863]
[1746043209806,7.13160736,1789.8,1789.7,7.2165647]
[1746043210293,7.13160736,1789.8,1789.6,5.115]
[1746043210602,7.13160736,1789.8,1789.6,10.70254109]
[1746043210807,3.74096457,1790.0,1789.7,5.58728708]
[1746043210972,3.74096457,1790.0,1789.7,5.58727681]
[1746043211437,9.32769398,1790.0,1789.6,10.70268996]
[1746043211742,3.74096457,1790.0,1789.6,12.41070597]
[1746043211901,3.74096457,1790.0,1789.7,5.58752863]
[1746043212234,3.74096457,1790.0,1789.7,5.58733727]
[1746043212436,9.32755836,1790.0,1789.6,12.41071235]
[1746043212608,3.74096457,1790.0,1789.6,12.41071235]
[1746043212806,5.5870577,1789.9,1789.6,5.115]
[1746043213137,5.58752863,1789.7,1789.6,5.115]
[1746043213436,5.5884654,1789.4,1789.3,5.115]
[1746043213638,5.58797222,1789.6,1789.3,5.115]
[1746043213939,12.32762525,1790.0,1789.6,5.58769312]
[1746043214142,5.58704154,1789.9,1789.7,5.115]
[1746043214704,5.58721644,1789.8,1789.7,5.115]
[1746043215042,5.58704154,1789.9,1789.7,5.115]
[1746043215201,5.58721644,1789.8,1789.7,5.115]
[1746043215397,9.81946056,1790.0,1789.7,5.115]
[1746043215635,3.74096457,1790.6,1789.7,5.115]
[1746043215819,3.74096457,1790.6,1789.8,0.83707642]
[1746043216115,5.58593013,1790.3,1789.8,0.7812]
[1746043216333,5.58674464,1790.0,1789.8,0.7812]
[1746043216521,5.58638463,1790.1,1789.8,0.7812]
[1746043216728,5.58690429,1789.9,1789.5,0.775]
[1746043216901,5.58741884,1789.8,1789.7,5.115]
[1746043217427,5.58741884,1789.8,1789.7,5.23095665]
[1746043217627,5.58741884,1789.8,1789.7,0.11595665]
[1746043217797,0.8114,1789.6,1789.0,23.584]
[1746043218002,5.58940249,1789.1,1789.0,23.584]
[1746043218213,5.58940249,1789.1,1788.5,0.804]
[1746043218214,5.59023233,1788.9,1788.7,5.115]
[1746043218412,6.09,1789.1,1788.8,5.59017664]
[1746043218631,6.09,1789.1,1789.0,6.39371492]
[1746043218817,6.09,1789.1,1789.0,0.804]
[1746043219427,11.67832768,1789.5,1789.1,5.58923299]
[1746043219624,6.09,1789.6,1789.3,5.58877773]
[1746043219972,11.67707622,1789.9,1789.5,5.58804804]
[1746043220152,5.58752863,1789.7,1789.6,5.115]
[1746043220344,5.58722131,1789.8,1789.6,5.115]
[1746043220651,5.58722131,1789.8,1789.3,10.70376471]
[1746043220652,5.58752863,1789.7,1789.3,10.70376471]
[1746043220858,5.5884654,1789.4,1789.3,5.115]
[1746043221038,11.6784654,1789.4,1789.3,5.115]
[1746043221441,6.09,1789.4,1789.3,5.115]
[1746043221645,6.09,1789.4,1789.3,5.8885]
[1746043222690,6.09,1789.4,1789.3,5.115]
[1746043222969,12.84629793,1789.4,1789.3,5.1176]
[1746043223165,7.25783253,1789.4,1789.3,5.1176]
[1746043223365,6.09,1789.4,1789.3,10.70637773]
[1746043223867,6.09,1789.4,1789.3,5.1176]
[1746043224082,6.09,1789.4,1789.3,10.70637773]
[1746043224253,6.09,1789.4,1789.3,5.1176]
[1746043224764,12.2874654,1789.4,1789.3,0.0026]
[1746043224943,15.2874654,1789.4,1789.3,0.0026]
[1746043226042,5.58877773,1789.3,1788.6,0.8229]
[1746043226383,5.5903771,1788.8,1788.6,0.8229]
[1746043226624,6.09,1788.8,1788.7,5.59065242]
[1746043227075,6.09,1788.8,1788.7,6.79108421]
[1746043227272,6.09,1789.3,1788.7,4.75043179]
[1746043227489,6.09,1789.4,1789.1,6.34218426]
[1746043227708,5.58848768,1789.4,1789.1,5.8679]
[1746043228093,11.67829124,1789.5,1789.1,11.45722045]
[1746043228294,18.99333288,1789.5,1789.1,11.45722045]
[1746043228495,13.40496286,1789.5,1789.1,11.45715177]
[1746043228776,11.67833554,1789.5,1789.1,11.45715177]
[1746043228976,6.09,1789.5,1789.2,5.58901591]
[1746043229416,6.09,1789.5,1789.1,17.04645395]
[1746043229624,5.58859238,1789.4,1789.1,5.8679]
[1746043229777,5.58909009,1789.2,1789.1,5.115]
[1746043229984,6.14781532,1789.3,1789.1,5.115]
[1746043230197,5.58909009,1789.2,1789.1,5.115]
[1746043230396,6.91641532,1789.3,1789.1,5.115]
[1746043230881,5.58909009,1789.2,1789.1,5.115]
[1746043232016,6.09,1789.2,1789.1,5.115]
[1746043232216,6.99040831,1789.2,1788.8,0.8073]
[1746043232380,5.58954591,1789.1,1788.8,0.8073]
[1746043232581,12.57971396,1789.2,1788.8,6.39752889]
[1746043232782,5.58951379,1789.1,1788.8,6.39761238]
[1746043233115,5.59033989,1788.8,1788.7,5.116]
[1746043233276,5.59020827,1788.9,1788.7,5.116]
[1746043233484,5.59033989,1788.8,1788.7,5.116]
[1746043233815,5.59020827,1788.9,1788.7,5.116]
[1746043234405,11.6798434,1789.0,1788.7,5.116]
[1746043234406,6.09,1789.0,1788.7,5.116]
[1746043234606,6.09,1789.0,1788.9,5.59002739]
[1746043234813,6.09,1789.3,1789.2,5.58909009]
[1746043235011,6.09,1789.6,1789.2,10.70485448]
[1746043235242,11.67802161,1789.6,1789.2,10.70498779]
[1746043235511,6.09,1789.6,1789.3,5.58855889]
[1746043235844,5.58859398,1789.4,1789.2,5.116]
[1746043236052,11.17670562,1789.5,1789.2,5.116]
[1746043236265,7.2577666,1789.6,1789.2,5.116]
[1746043236266,5.58877773,1789.3,1789.2,5.116]
[1746043236617,5.58947781,1789.1,1788.9,5.116]
[1746043236811,11.67971492,1789.0,1788.9,5.116]
[1746043237019,6.09,1789.0,1788.9,5.116]
[1746043237333,6.09,1789.0,1788.9,10.70602739]
[1746043237710,6.09,1789.4,1789.2,5.5889801]
[1746043237955,6.09,1789.4,1789.3,5.116]
[1746043238321,9.83096457,1789.5,1789.3,5.116]
[1746043238545,10.81406103,1789.5,1789.3,5.116]
[1746043238844,16.40231581,1789.5,1789.3,5.116]
[1746043239058,10.81406103,1789.5,1789.3,10.70472497]
[1746043239262,9.83096457,1789.5,1789.3,10.70458418]
[1746043239421,9.83096457,1789.5,1789.4,5.5884654]
[1746043239625,9.83096457,1789.5,1789.3,5.116]
[1746043240158,9.83096457,1789.5,1789.3,10.70456342]
[1746043240465,3.74096457,1789.5,1789.4,6.3914654]
[1746043240831,3.74096457,1789.5,1789.4,6.9414654]
[1746043241241,3.74096457,1790.1,1789.8,5.58711519]
[1746043241575,3.74096457,1790.1,1789.9,5.208]
[1746043242082,5.58659217,1790.0,1789.9,5.208]
[1746043242240,7.07798394,1790.0,1789.9,5.208]
[1746043242777,1.49139177,1790.0,1789.9,5.208]
[1746043243072,7.07798394,1790.0,1789.9,5.208]
[1746043243277,10.07798394,1790.0,1789.9,5.208]
[1746043243672,1.49139177,1790.0,1789.9,5.208]
[1746043243839,3.74096457,1790.1,1789.9,5.208]
[1746043244241,9.3272603,1790.1,1789.9,5.208]
[1746043244646,5.5871362,1789.9,1789.5,5.5879552]
[1746043244860,5.58731491,1789.8,1789.6,5.208]
[1746043245074,1.11744511,1789.8,1789.6,5.208]
[1746043245242,5.58744747,1789.8,1789.6,5.208]
[1746043245458,5.58696389,1789.9,1789.6,5.208]
[1746043246271,3.74096457,1790.6,1790.5,6.40423211]
[1746043246479,3.9855887,1790.9,1790.8,5.58409649]
[1746043246480,1e-08,1790.9,1790.8,5.58409649]
[1746043246697,8.25765063,1791.9,1791.3,9.33493782]
[1746043246851,8.25765063,1791.9,1791.8,5.58098002]
[1746043247043,8.25765063,1791.9,1791.8,10.78798002]
[1746043247259,8.25765063,1791.9,1791.6,8.58160303]
[1746043247260,8.25765063,1791.9,1791.4,0.55]
[1746043247460,8.25765063,1791.9,1791.5,0.70787042]
[1746043247790,8.25765063,1791.9,1791.6,5.207]
[1746043248097,5.58129151,1791.7,1791.6,5.207]
[1746043248275,9.40147386,1791.7,1791.6,5.207]
[1746043248653,9.38659151,1791.7,1791.6,5.207]
[1746043248990,9.38659151,1791.7,1790.8,6.3977928]
[1746043248991,5.58160303,1791.6,1790.8,0.8137]
[1746043249195,5.58378468,1790.9,1790.8,5.207]
[1746043249703,3.0,1791.0,1790.8,5.207]
[1746043250005,11.99657026,1791.1,1790.4,19.2907]
[1746043250006,3.8298,1791.1,1790.4,19.2907]
[1746043250294,5.58394494,1790.9,1790.5,5.206]
[1746043250502,6.14233943,1790.9,1790.5,5.206]
[1746043250648,6.41310081,1791.1,1790.6,5.58460065]
[1746043250847,0.84468235,1791.1,1790.5,5.206]
[1746043251097,5.58405278,1790.9,1790.6,0.8187]
[1746043251247,5.59913531,1790.8,1790.5,5.206]
[1746043251447,5.58454479,1790.7,1790.5,5.206]
[1746043251686,6.3774423,1790.9,1790.5,5.206]
[1746043251687,5.58429414,1790.8,1790.5,5.206]
[1746043251853,6.78046778,1790.8,1790.5,5.206]
[1746043252050,0.01488235,1790.7,1789.9,0.8169]
[1746043252293,0.01488235,1790.7,1790.1,5.586259]
[1746043252294,5.59944984,1790.7,1790.1,5.586259]
[1746043252444,5.58476388,1790.6,1790.2,5.205]
[1746043252784,5.58518827,1790.5,1790.2,5.205]
[1746043252987,0.80838235,1790.9,1790.3,5.58561627]
[1746043253295,5.58409649,1790.8,1790.2,10.79078665]
[1746043253589,0.80838235,1790.9,1790.2,5.205]
[1746043253786,5.58490513,1790.6,1790.2,5.205]
[1746043254101,9.37729384,1790.9,1790.2,5.205]
[1746043254102,5.58391738,1790.9,1790.3,0.05585328]
[1746043254250,5.58422214,1790.8,1790.3,5.58543383]
[1746043254577,5.58461915,1790.7,1790.2,11.86992431]
[1746043254764,5.58461915,1790.7,1790.2,6.2841056]
[1746043255087,5.58358907,1791.0,1790.5,5.58498961]
[1746043255389,6.36555416,1791.2,1790.3,0.7894]
[1746043255699,5.58489173,1790.6,1790.3,0.7894]
[1746043256087,5.5837879,1790.9,1790.2,5.205]
[1746043256379,11.17119748,1790.4,1790.2,5.205]
[1746043256551,6.3429813,1790.7,1789.5,5.58808498]
[1746043256552,5.58703452,1789.9,1789.7,0.8065]
[1746043256751,5.60209879,1789.8,1789.7,5.205]
[1746043256965,5.58707445,1789.9,1789.7,5.205]
[1746043257164,5.58721644,1789.8,1789.7,5.205]
[1746043257567,5.58709891,1789.9,1789.7,5.205]
[1746043257763,0.7644,1790.1,1789.1,0.7776]
[1746043257987,0.7644,1790.1,1788.5,5.5910994]
[1746043257988,5.58937871,1789.2,1788.8,0.7776]
[1746043258186,5.58900664,1789.3,1788.8,0.7776]
[1746043258482,5.58913067,1789.2,1788.8,5.9826]
[1746043258801,0.01488235,1789.2,1788.8,5.205]
[1746043258980,5.59002739,1788.9,1788.8,5.205]
[1746043259182,5.58954016,1789.1,1788.8,5.205]
[1746043259383,5.5892601,1789.2,1788.8,11.31581935]
[1746043259620,5.5892601,1789.2,1788.8,5.7255]
[1746043259921,5.58718998,1789.9,1789.4,5.58832682]
[1746043260072,5.58739231,1789.8,1789.3,5.58855997]
[1746043260272,5.58718998,1789.9,1789.4,12.11958597]
[1746043260273,5.58704324,1789.9,1789.4,12.11958597]
[1746043260483,5.58704324,1789.9,1789.5,5.58810613]
[1746043260820,6.09,1789.9,1789.4,6.531256]
[1746043260977,6.09,1790.1,1789.9,5.58670037]
[1746043261179,11.67577789,1790.3,1789.9,0.55867004]
[1746043261522,5.58721644,1789.8,1789.7,5.206]
[1746043262085,11.67721644,1789.8,1789.7,5.206]
[1746043262819,11.67721644,1789.8,1789.1,19.276]
[1746043262820,14.67721644,1789.8,1789.1,19.276]
[1746043263131,3.0,1789.5,1788.4,18.462]
[1746043263294,3.0,1789.5,1788.5,10.79719465]
[1746043263295,5.58982868,1789.0,1788.5,10.79719465]
[1746043263503,5.59056333,1788.8,1788.5,5.206]
[1746043263880,5.59019366,1788.9,1788.5,5.206]
[1746043264198,5.59019366,1788.9,1788.6,0.5206]
[1746043264199,5.59039035,1788.8,1788.6,0.5206]
[1746043264607,5.59011611,1788.9,1788.6,5.207]
[1746043264922,5.59005146,1788.9,1788.6,5.207]
[1746043265303,5.59028316,1788.9,1788.3,6.37713609]
[1746043265507,0.41152723,1789.5,1788.3,0.7854]
[1746043265508,3.0,1789.2,1788.3,0.7854]
[1746043265752,5.58982462,1789.0,1788.6,5.59082044]
[1746043266057,5.59013743,1788.9,1788.7,5.207]
[1746043266261,5.58982462,1789.0,1788.7,5.207]
[1746043266552,5.58960407,1789.1,1788.7,5.207]
[1746043266766,5.58937974,1789.2,1788.8,5.59016307]
[1746043266947,5.58937974,1789.2,1788.8,6.40916307]
[1746043267334,5.58832487,1789.5,1789.1,5.58928145]
[1746043267535,5.58832487,1789.5,1789.2,5.207]
[1746043267921,5.5879933,1789.6,1789.2,10.79590675]
[1746043268276,3.0,1789.8,1789.2,6.84551616]
[1746043268277,5.58863696,1789.4,1789.2,6.84551616]
[1746043268417,5.58925259,1789.2,1789.0,5.207]
[1746043268771,3.0,1789.7,1789.0,5.207]
[1746043269044,5.58822127,1789.5,1789.1,5.5892062]
[1746043269247,5.58802948,1789.6,1789.2,0.55892062]
[1746043269409,11.69303546,1789.5,1789.0,5.285]
[1746043269606,11.67815311,1789.5,1789.0,5.285]
[1746043269835,0.01488235,1789.4,1789.0,5.285]
[1746043270046,6.09,1789.5,1789.0,5.285]
[1746043270244,5.58802657,1789.6,1789.0,10.87454606]
[1746043270408,5.58802657,1789.6,1789.1,1.08745461]
[1746043270409,5.58859664,1789.4,1789.1,1.08745461]
[1746043270613,5.59002739,1788.9,1788.6,5.286]
[1746043270868,6.09,1788.9,1788.7,5.5906476]
[1746043271013,11.68004508,1788.9,1788.6,5.286]
[1746043271213,6.09,1788.9,1788.6,10.87685751]
[1746043271414,5.59046404,1788.8,1788.6,5.286]
[1746043271676,11.68014577,1788.9,1788.6,5.88995]
[1746043271948,5.59065242,1788.7,1788.6,0.60395]
[1746043272114,11.68057056,1788.8,1788.4,5.59156939]
[1746043272442,6.09,1788.8,1788.7,5.59065242]
[1746043272649,6.09,1789.1,1789.0,5.58971492]
[1746043272816,6.09,1789.5,1789.1,0.7577]
[1746043273010,6.09,1789.6,1789.3,5.58876126]
[1746043273217,6.09,1789.6,1789.4,0.55887613]
[1746043273658,11.67786229,1789.6,1789.4,0.55887613]
[1746043273866,6.09,1789.6,1789.4,6.14721537]
[1746043274066,5.58848481,1789.4,1789.1,5.286]
[1746043274225,5.5886492,1789.4,1789.1,5.286]
[1746043274416,6.09,1789.6,1789.1,5.286]
[1746043274753,5.58782664,1789.7,1789.3,6.39213973]
[1746043275062,6.35886482,1790.2,1789.2,0.5286]
[1746043275063,6.09,1789.9,1789.8,6.36331644]
[1746043275218,5.58568676,1790.3,1789.9,5.58678099]
[1746043275433,5.58541016,1790.4,1790.0,5.58645195]
[1746043275778,5.5859884,1790.2,1790.0,1.11732176]
[1746043275925,5.58591091,1790.3,1790.0,1.11732176]
[1746043276131,6.09,1790.6,1789.9,5.58690429]
[1746043276327,11.67484457,1790.6,1790.1,5.58604543]
[1746043276641,5.58441732,1790.7,1790.3,6.34781724]
[1746043276958,5.58409649,1790.8,1790.3,6.34765672]
[1746043277159,11.67361125,1791.0,1790.5,5.58489336]
[1746043277327,5.58425271,1790.8,1790.6,5.285]
[1746043277529,5.58440833,1790.7,1790.6,5.285]
[1746043278473,5.58565603,1790.3,1790.2,5.285]
[1746043279071,5.5845496,1790.7,1790.3,5.58560195]
[1746043279232,5.58504108,1790.5,1790.2,6.0686]
[1746043279433,5.58548898,1790.4,1790.2,6.0686]
[1746043279633,5.585521,1790.4,1790.2,5.285]
[1746043279929,5.58471119,1790.7,1790.2,5.285]
[1746043279930,6.8606,1791.2,1790.5,6.36833136]
[1746043280129,5.58331243,1791.1,1790.6,5.285]
[1746043280360,5.58366007,1791.0,1790.6,5.285]
[1746043280565,5.58331575,1791.1,1790.7,5.58428814]
[1746043280772,5.58300451,1791.2,1790.7,5.58419405]
[1746043280986,5.5820725,1791.5,1791.0,5.58323241]
[1746043281289,5.58175523,1791.6,1791.1,10.86792914]
[1746043281444,5.58175523,1791.6,1791.2,5.58270125]
[1746043281648,0.01488235,1791.6,1791.1,5.285]
[1746043281850,5.58234906,1791.4,1791.1,5.285]
[1746043282049,5.58284948,1791.2,1791.1,6.37183625]
[1746043282376,5.58284948,1791.2,1790.9,0.83]
[1746043282377,5.58288256,1791.2,1790.9,0.83]
[1746043282559,5.58402305,1790.9,1790.6,0.7982]
[1746043282765,5.5847202,1790.6,1790.5,5.285]
[1746043282971,0.7518,1791.0,1790.5,5.285]
[1746043283186,5.58470453,1790.7,1790.5,5.285]
[1746043283345,5.58440833,1790.7,1790.6,0.5285]
[1746043283543,5.5842692,1790.8,1790.5,5.285]
[1746043283843,5.58351451,1791.0,1790.5,5.285]
[1746043283844,11.16924453,1790.7,1790.5,5.285]
[1746043284065,5.58351451,1791.0,1790.5,5.285]
[1746043284271,5.58367007,1791.0,1790.5,5.285]
[1746043284467,5.58460931,1790.7,1790.5,5.285]
[1746043284704,5.58628009,1790.1,1790.0,0.8113]
[1746043284896,5.58628009,1790.1,1789.6,24.04769488]
[1746043284897,11.17280731,1790.1,1789.8,0.8061]
[1746043285046,11.17280731,1790.1,1789.4,0.10218908]
[1746043285047,5.58784085,1789.6,1789.5,0.8061]
[1746043285245,5.58733167,1789.8,1789.5,0.8061]
[1746043285446,5.58650493,1790.1,1789.7,5.58745391]
[1746043285684,5.60116244,1790.1,1789.6,5.283]
[1746043285982,5.58714049,1789.9,1789.6,5.283]
[1746043286494,9.75376853,1790.6,1789.6,5.283]
[1746043286791,6.09,1790.7,1789.8,4.3273]
[1746043286954,5.5847202,1790.6,1790.0,5.58633566]
[1746043287287,5.58523406,1790.5,1790.1,10.86917596]
[1746043287476,5.58469134,1790.7,1790.3,6.35115167]
[1746043287661,5.58469134,1790.7,1790.3,0.7655]
[1746043287861,5.58514214,1790.5,1790.3,0.7655]
[1746043288056,5.58534405,1790.4,1790.1,5.283]
[1746043288259,11.17159873,1790.3,1790.1,5.283]
[1746043288460,4.96712291,1790.3,1790.1,5.283]
[1746043288983,5.58525604,1790.5,1790.1,10.86925896]
[1746043289147,5.58487151,1790.6,1790.1,10.86925896]
[1746043289488,5.58430691,1790.8,1790.4,5.58522391]
[1746043289658,5.58452963,1790.7,1790.5,5.283]
[1746043290396,5.58410427,1790.8,1790.5,5.283]
[1746043290553,5.58410427,1790.8,1790.5,6.0364]
[1746043290887,5.58446081,1790.7,1790.5,6.0364]
[1746043291049,5.58422765,1790.8,1790.5,6.0364]
[1746043291388,5.58422765,1790.8,1790.5,7.19855848]
[1746043291610,5.5835969,1791.0,1790.6,5.58457125]
[1746043291803,5.58390823,1790.9,1790.5,12.78341338]
[1746043292093,6.09,1791.1,1790.5,6.0364]
[1746043292270,5.58459682,1790.7,1790.5,6.0364]
[1746043292995,5.58459682,1790.7,1790.5,0.7534]
[1746043293150,5.58459682,1790.7,1790.2,5.58596325]
[1746043293151,0.01488235,1790.7,1790.2,0.7937]
[1746043293493,5.58490663,1790.6,1790.2,6.37949315]
[1746043293659,11.67522602,1790.5,1790.2,1.99027412]
[1746043294048,6.09,1790.5,1790.2,7.57612683]
[1746043294358,5.58540286,1790.4,1790.2,1.99027412]
[1746043294560,6.09,1790.5,1790.2,6.37938017]
[1746043294764,6.09,1790.5,1790.3,5.58564193]
[1746043295099,6.09,1790.5,1790.2,0.7937]
[1746043295457,6.09,1790.5,1790.3,5.58551115]
[1746043295663,6.09,1790.5,1790.4,5.58534405]
[1746043295864,6.09,1790.5,1790.4,6.70242957]
[1746043296207,6.09,1790.5,1790.4,7.51652957]
[1746043296561,6.09,1791.1,1790.4,1.93118552]
[1746043296862,5.58351698,1791.0,1790.6,5.58446005]
[1746043297182,6.09,1791.1,1790.5,5.282]
[1746043297498,6.09,1791.1,1790.5,10.86683806]
[1746043297658,5.58400098,1790.9,1790.5,10.86697593]
[1746043297859,5.58441979,1790.7,1790.5,5.282]
[1746043298062,5.5847202,1790.6,1790.5,5.282]
[1746043298262,14.6747202,1790.6,1790.5,5.282]
[1746043298806,6.09,1790.6,1790.5,5.282]
[1746043298985,11.67426475,1790.8,1790.5,5.282]
[1746043299199,11.67426475,1790.8,1790.5,6.096]
[1746043299200,6.09,1790.8,1790.5,6.096]
[1746043299392,6.09,1790.8,1790.6,6.19419342]
[1746043299564,6.09,1790.8,1790.7,5.58440833]
[1746043299764,6.09,1790.8,1790.6,11.77870907]
[1746043299966,6.09,1791.0,1790.7,5.58425793]
[1746043300211,6.09,1791.1,1790.8,5.58409578]
[1746043300409,5.58316446,1791.1,1790.8,6.14250536]
[1746043300702,5.58347354,1791.0,1790.6,0.6096]
[1746043300904,11.67290008,1791.2,1790.6,0.6096]
[1746043301088,0.01488235,1791.1,1790.5,6.096]
[1746043301271,5.5847202,1790.6,1790.5,5.282]
[1746043301600,11.6747202,1790.6,1790.5,5.282]
[1746043301798,6.09,1790.6,1790.5,5.282]
[1746043302796,6.09,1790.9,1790.6,0.7523]
[1746043303107,6.09,1791.0,1790.7,5.58419123]
[1746043303317,6.09,1791.1,1790.9,5.58349437]
[1746043303510,6.09,1791.1,1791.0,0.7977]
[1746043303665,6.09,1791.1,1791.0,6.1677]
[1746043304177,3.0,1791.5,1790.7,0.804]
[1746043304376,5.58424125,1790.8,1790.5,6.15]
[1746043304582,5.58422974,1790.8,1790.5,6.15]
[1746043304979,5.5847202,1790.6,1790.5,5.37]
[1746043305379,5.58465281,1790.7,1790.5,5.37]
[1746043305584,5.58409365,1790.9,1790.5,10.95493517]
[1746043305781,5.58409365,1790.9,1790.5,5.37]
[1746043305782,5.58453759,1790.7,1790.5,5.37]
[1746043306114,5.58413471,1790.8,1790.5,5.907]
[1746043306311,0.01488235,1791.0,1790.5,11.49185759]
[1746043306481,5.59804353,1791.1,1790.6,0.8209]
[1746043306684,5.58404411,1790.9,1790.6,0.8209]
[1746043306886,5.5836096,1791.0,1790.6,6.40546536]
[1746043307082,5.58295518,1791.2,1790.7,5.58419106]
[1746043307287,0.01488235,1791.3,1790.6,8.19519543]
[1746043307486,5.58330295,1791.1,1790.6,8.19513765]
[1746043307683,3.0,1791.4,1790.8,5.58409649]
[1746043307875,5.5824395,1791.4,1791.0,5.58336021]
[1746043308212,5.58205311,1791.5,1791.1,5.92833602]
[1746043308367,5.58235229,1791.4,1791.1,5.92833602]
[1746043308570,5.58264757,1791.3,1791.1,5.92833602]
[1746043309117,5.58226094,1791.4,1791.1,5.92833602]
[1746043309285,5.58224036,1791.4,1791.1,11.51138347]
[1746043309480,6.09,1791.6,1791.3,5.58244266]
[1746043309680,5.58244543,1791.4,1791.2,1.15113835]
[1746043309880,11.67177266,1791.6,1791.2,1.15113835]
[1746043310077,5.58238921,1791.4,1791.2,1.15113835]
[1746043310289,11.67177787,1791.6,1791.2,1.15113835]
[1746043310492,5.58226575,1791.4,1791.2,1.15113835]
[1746043310711,5.58207302,1791.5,1791.2,1.15113835]
[1746043310899,5.58224702,1791.4,1791.2,1.15113835]
[1746043311103,5.58207302,1791.5,1791.2,1.15113835]
[1746043311401,6.09,1791.6,1791.3,5.58243302]
[1746043311605,6.09,1791.6,1791.4,0.5582433]
[1746043311803,6.09,1791.6,1791.5,5.369]
[1746043311991,11.67150651,1791.7,1791.5,5.369]
[1746043312518,17.2530439,1791.7,1791.5,5.369]
[1746043312694,5.58160303,1791.6,1791.5,5.369]
[1746043314098,11.67150651,1791.7,1791.5,5.369]
[1746043314826,6.09,1791.7,1791.5,5.369]
[1746043315017,5.58160303,1791.6,1791.5,5.369]
[1746043315322,11.67138746,1791.7,1791.5,5.369]
[1746043315481,17.25294897,1791.7,1791.5,5.369]
[1746043315680,11.67138746,1791.7,1791.5,5.369]
[1746043315882,5.58160303,1791.6,1791.5,5.369]
[1746043317297,11.67160303,1791.6,1791.5,5.369]